[Event "26th OIBM 2023"]
[Site "Gmund am Tegernsee"]
[Date "2023.11.03"]
[Round "7.8"]
[White "Petrov, Nikita"]
[Black "Cherniaiev, Tykhon"]
[Result "1-0"]
[ECO "D02"]
[WhiteElo "2551"]
[BlackElo "2278"]
[Annotator "TA"]
[PlyCount "137"]
[EventDate "2023.10.04"]
[EventType "swiss"]
[EventCountry "GER"]
[SourceTitle "playchess.com"]
[Source "ChessBase"]
[SourceQuality "1"]
[TimeControl "40/5400+30:1800+30"]

{[%evp 17,135,19,16,25,20,12,14,19,29,16,29,19,32,26,31,25,35,37,36,38,39,38,45,43,41,39,42,37,45,39,32,23,27,27,21,18,26,10,40,17,17,17,21,1,18,8,43,43,44,52,69,65,125,137,134,119,130,120,158,177,175,172,170,0,143,93,94,24,22,8,8,8,8,8,8,8,22,14,17,27,25,21,250,250,29977,29978,29978,29978,29980,29981,29981,29982,29982,29983,29984,29985,29986,29984,29984,29985,29985,29986,29987,29988,29988,29989,29989,29990,29990,29991,29991,29991,29991,29992,29996,29997,29997,29997,29997,29998]} 1. d4 {[%emt 0:00:03]} d5 {[%emt 0:00:17]} 2. Nf3 {[%emt 0:00:13]} Nf6 {[%emt 0:00:14]} 3. Bf4 {[%emt 0:00:13]} c5 {[%emt 0:01:28]} 4. e3 {[%emt 0:00:07]} Nc6 {[%emt 0:00:59]} 5. Nbd2 {[%emt 0:00:09]} e6 {[%emt 0:00:36]} 6. c3 {[%emt 0:00:33]} Bd6 {[%emt 0:01:15]} 7. Bg3 {[%emt 0:00:42]} O-O {[%emt 0:05:13]} 8. Bd3 {[%emt 0:01:24]} Qe7 {[%emt 0:00:31]} 9. Ne5 {[%emt 0:04:05]} Nd7 {[%emt 0:01:16]} 10. Nxd7 {[%emt 0:02:34] D02: 1 d4 d5 2 Nf3 sidelines, including 2...Nf6 3 g3 and 2...Nf6 3 Bf4.} Qxd7 {[%emt 0:04:57]} 11. O-O {[%emt 0:02:23]} Qe7 {[%emt 0:14:03]} (11... Bxg3 {with more complications.} 12. hxg3 Qe7 13. Qh5 f5) 12. Bxd6 {[%emt 0:03:39] The position is equal.} (12. Qf3 {is more complex.} b6 13. Bxd6 Qxd6 14. Qh5) 12... Qxd6 {[%emt 0:00:16]} 13. f4 {[%emt 0:00:19][%cal Bf2f4,Bf4e5,Be5d6,Bd6d7][%mdl 32]} f5 {[%emt 0:04:35] [#]} 14. g4 $146 {[%emt 0:14:01]} ({Predecessor:} 14. Qf3 c4 15. Bc2 b5 16. a3 a5 17. Rf2 Bd7 18. Qh3 b4 19. Nf3 bxc3 20. bxc3 Qe7 21. Kh1 {½-½ Nirnay,G (1784)-Raj,K (1540) IND-ch U15 47th 2022 (8)}) 14... cxd4 {[%emt 0:13:40]} (14... Rb8 {simplifies} 15. g5 b5 16. Be2 b4) 15. exd4 {[%emt 0:01:47]} fxg4 {[%emt 0:00:59]} 16. Qxg4 {[%emt 0:00:42] Qh5 is the strong threat.} e5 {[%emt 0:03:19][%mdl 64] Discovered Attack} 17. fxe5 {[%emt 0:01:11]} Bxg4 {[%emt 0:00:45]} 18. exd6 {[%emt 0:00:09]} Rxf1+ {[%emt 0:05:24]} 19. Nxf1 {[%emt 0:26:46]} Rd8 {[%emt 0:01:49]} 20. Ne3 {[%emt 0:04:11][%csl LRd5,LRg4]} Be6 {[%emt 0:00:33]} 21. Bf5 {[%emt 0:00:21]} Bf7 {[%emt 0:02:30]} 22. d7 {[%emt 0:00:21]} Nb8 {[%emt 0:00:32]} 23. Ng4 {[%emt 0:03:12] Threatens to win with Ne5.} g6 {[%emt 0:05:41]} 24. Nh6+ {[%emt 0:08:34]} Kg7 {[%emt 0:00:13]} 25. Nxf7 {[%emt 0:00:05]} Kxf7 $11 {[%emt 0:00:08][%mdl 4096] Endgame KRB-KRN} 26. Bh3 {[%emt 0:00:43] Hoping for Rf1+.} Nxd7 {[%emt 0:00:11]} 27. Re1 {[%emt 0:00:57] With the idea Be6+.} Nf6 {[%emt 0:00:30]} 28. Re5 {[%emt 0:00:32]} Rd6 {[%emt 0:03:20]} 29. Bg2 {[%emt 0:00:46]} h6 {[%emt 0:01:10]} 30. h4 {[%emt 0:00:54]} Kf8 {[%emt 0:01:18]} 31. Bf3 {[%emt 0:03:21]} Rd7 {[%emt 0:04:54]} 32. Kf2 {[%emt 0:02:17]} Kf7 {[%emt 0:02:05]} 33. Ke3 {[%emt 0:01:27]} b5 {[%emt 0:01:00]} 34. Kd3 {[%emt 0:01:43]} Rd6 {[%emt 0:00:27] [#]} (34... Kf8 $14) 35. Kc2 $1 $16 {[%emt 0:01:28]} a5 {[%emt 0:09:01]} 36. Kb3 {[%emt 0:00:43]} Kf8 {[%emt 0:00:26]} 37. a4 {[%emt 0:03:19]} bxa4+ {[%emt 0:00:19]} 38. Kxa4 {[%emt 0:00:09]} Rb6 {[%emt 0:00:04]} 39. Re2 {[%emt 0:06:34]} (39. Kxa5 $6 Rxb2 40. Bxd5 Rc2 $14) 39... Ra6 {[%emt 0:00:16]} 40. Re5 {[%emt 0:03:12]} Rb6 {[%emt 0:00:10]} 41. b3 {[%emt 0:08:13]} (41. Kxa5 Rxb2 42. Bxd5 Rc2 $14) (41. b4 $142 axb4 42. cxb4) 41... Rb8 {[%emt 0:00:41]} 42. Ka3 {[%emt 0:04:51] White is more active.} (42. Bxd5 $6 Nd7 $11) (42. Bg2 $16) 42... Rc8 $1 $11 {[%emt 0:00:58]} 43. Re3 {[%emt 0:02:54]} g5 {[%emt 0:02:13]} 44. hxg5 {[%emt 0:00:03]} hxg5 {[%emt 0:00:07][%cal Bh6g5,Bg5g4][%mdl 32]} 45. Ka4 {[%emt 0:00:03]} g4 {[%emt 0:03:29]} 46. Bd1 {[%emt 0:02:03]} Ra8 {[%emt 0:02:29]} 47. c4 {[%emt 0:00:16]} dxc4 {[%emt 0:00:13]} 48. bxc4 {[%emt 0:00:09]} Rd8 {[%emt 0:00:47]} 49. Rd3 {[%emt 0:01:33]} Ne4 $2 {[%emt 0:02:00] This costs Black the game.} (49... Ke8 $11) 50. Bxg4 $18 {[%emt 0:02:21]} (50. Kxa5 g3 51. Bf3 Nc5 $11) 50... Nc5+ $2 {[%emt 0:03:31]} (50... Nd6 $18 51. Be6 (51. Kxa5 Nxc4+ 52. Ka6 Ne5 $11) 51... Ke7) 51. dxc5 {[%emt 0:00:04][%mdl 64] Discovered Attack. ?ev?.} Rxd3 {[%emt 0:00:07] [#] KR-KB} 52. c6 $1 {[%emt 0:00:25]} ({And not} 52. Kxa5 Ke7 $11) 52... Rd4 {[%emt 0:00:17] [#]} 53. Kb5 $1 {[%emt 0:01:40]} Rxg4 {[%emt 0:00:23] KR-KPP} (53... Ke7 54. c7) 54. c7 {[%emt 0:00:05]} Rg5+ {[%emt 0:00:08]} 55. c5 {[%emt 0:00:16]} a4 {[%emt 0:01:05]} 56. c8=Q+ {[%emt 0:00:06] KQ-KR} ({Not} 56. c8=R+ Ke7 $16) 56... Kg7 {[%emt 0:00:09]} 57. Qb7+ {[%emt 0:00:09]} Kh8 {[%emt 0:00:09]} 58. Qa8+ {[%emt 0:00:19]} Kg7 {[%emt 0:00:27]} 59. Qxa4 {[%emt 0:00:07]} Rg6 {[%emt 0:00:18]} 60. c6 {[%emt 0:00:08]} Rg5+ {[%emt 0:00:27]} 61. Kb6 {[%emt 0:00:27]} Rg6 {[%emt 0:00:07]} 62. Kb7 {[%emt 0:00:12]} Rf6 {[%emt 0:00:26]} 63. Qd4 {[%emt 0:00:09]} Kg6 {[%emt 0:00:10]} 64. c7 {[%emt 0:00:20]} Rf7 {[%emt 0:00:07]} 65. Kb8 {[%emt 0:00:06]} Kh7 {[%emt 0:00:15]} 66. c8=Q {[%emt 0:00:28]} Rf6 {[%emt 0:00:06]} 67. Qcd7+ {[%emt 0:00:14]} Kg8 {[%emt 0:00:08]} 68. Q4g4+ {[%emt 0:00:08]} Kh8 {[%emt 0:00:07]} 69. Qgg7# {[%emt 0:00:04] Weighted Error Value: White=0.10 (very precise) /Black=0.23 (precise)} 1-0

[Event "26th OIBM 2023"]
[Site "Gmund am Tegernsee"]
[Date "2023.11.03"]
[Round "7.9"]
[White "Lavrencic, Matic"]
[Black "Lagarde, Maxime"]
[Result "0-1"]
[ECO "B40"]
[WhiteElo "2319"]
[BlackElo "2626"]
[Annotator "TA"]
[PlyCount "54"]
[EventDate "2023.10.04"]
[EventType "swiss"]
[EventCountry "GER"]
[SourceTitle "playchess.com"]
[Source "ChessBase"]
[SourceQuality "1"]
[TimeControl "40/5400+30:1800+30"]

{[%evp 11,54,10,16,0,0,0,0,8,17,16,2,-4,25,-31,-3,6,5,0,5,0,24,0,0,0,0,-17,0,-276,-276,-299,-272,-296,-275,-389,-375,-375,-380,-521,-521,-530,-518,-515,-515,-538,-536]} 1. e4 {[%emt 0:00:18]} c5 {[%emt 0:00:07]} 2. Nf3 {[%emt 0:00:11]} e6 {[%emt 0:00:03]} 3. d4 {[%emt 0:00:24]} cxd4 {[%emt 0:00:03]} 4. Nxd4 {[%emt 0:00:11]} Nf6 {[%emt 0:00:03]} 5. Bd3 {[%emt 0:00:26]} Nc6 {[%emt 0:05:11]} 6. Nxc6 {[%emt 0:00:31]} bxc6 {[%emt 0:00:13]} 7. Bf4 {[%emt 0:00:10] B40: Sicilian: 2...e6, Unusual lines.} (7. O-O $5 {[%cal Re4e5]}) 7... d5 {[%emt 0:01:27]} 8. Nd2 {[%emt 0:00:20]} g6 {[%emt 0:04:49]} 9. c3 {[%emt 0:00:52] [#] The position is equal.} Nh5 $146 {[%emt 0:03:52]} ({Predecessor:} 9... Bg7 10. O-O O-O 11. Re1 Nh5 12. Be3 e5 13. Bc5 Re8 14. g3 Nf6 15. Bf1 a5 {0-1 Sanal,V (2561)-Indjic,A (2629) SRB-chT Premier 2021 (9.1)}) 10. Be3 {[%emt 0:01:41]} Bd6 {[%emt 0:00:32]} 11. O-O {[%emt 0:14:04]} O-O {[%emt 0:08:44]} (11... Qh4 $2 12. e5 Bc7 13. Nf3 $18) 12. b4 {[%emt 0:12:16]} (12. Re1 $11) 12... e5 {[%emt 0:07:26]} (12... Qh4 13. g3 Qd8 14. Qb3 $14) 13. Be2 {[%emt 0:09:12]} Ng7 {[%emt 0:03:02]} 14. exd5 {[%emt 0:04:14]} cxd5 {[%emt 0:00:44][%cal Bc6d5,Bd5d4][%mdl 32]} 15. Nb3 {[%emt 0:00:29]} Bc7 {[%emt 0:03:51]} 16. Bc5 {[%emt 0:02:25]} Re8 {[%emt 0:00:55]} 17. Bb5 {[%emt 0:04:14]} Re6 {[%emt 0:05:06] Repels Bc6} 18. Qd2 {[%emt 0:04:21][%cal Of2f4]} Bb7 {[%emt 0:01:58]} 19. Be3 $2 {[%emt 0:01:15][%mdl 8192] [#]} (19. Rfe1 $11 {and White has nothing to worry.}) 19... d4 $1 $19 {[%emt 0:01:46][%mdl 512]} 20. Bc4 {[%emt 0:09:39][%cal Rc3d4]} (20. Nc5 Qd5) 20... dxe3 {[%emt 0:02:19]} 21. Qxd8+ {[%emt 0:00:05]} Rxd8 {[%emt 0:00:11]} (21... Bxd8 $2 {is the wrong capture.} 22. Nc5 Bc8 23. Nxe6 exf2+ 24. Rxf2 Nxe6 25. Re1 $19) 22. Bxe6 {[%emt 0:01:08]} (22. Nc5 $142 Rb6 23. fxe3) 22... exf2+ {[%emt 0:04:19]} ({And not} 22... fxe6 23. fxe3 Bb6 24. Nc5 $17) 23. Rxf2 {[%emt 0:00:18]} Nxe6 {[%emt 0:00:04]} (23... fxe6 $2 {too greedy.} 24. c4 $19) 24. Rd2 {[%emt 0:00:05]} Bb6+ {[%emt 0:00:20] Black is clearly winning.} 25. Kf1 {[%emt 0:00:31]} Ba6+ {[%emt 0:02:03]} 26. Ke1 {[%emt 0:00:08]} Rc8 {[%emt 0:00:02]} 27. Rc2 {[%emt 0:00:44]} Bd3 {[%emt 0:01:04] Weighted Error Value: White=0.41/Black=0.04 (flawless)} 0-1

[Event "26th OIBM 2023"]
[Site "Gmund am Tegernsee"]
[Date "2023.11.03"]
[Round "7.10"]
[White "Bauer, Christian"]
[Black "Unuk, Laura"]
[Result "1/2-1/2"]
[ECO "D31"]
[WhiteElo "2552"]
[BlackElo "2313"]
[Annotator "TA"]
[PlyCount "83"]
[EventDate "2023.10.04"]
[EventType "swiss"]
[EventCountry "GER"]
[SourceTitle "playchess.com"]
[Source "ChessBase"]
[SourceQuality "1"]
[TimeControl "40/5400+30:1800+30"]

{[%evp 9,83,22,15,20,22,18,12,14,18,16,14,23,51,16,20,22,40,33,27,13,54,51,52,45,51,41,78,25,26,32,27,33,19,42,39,30,115,103,116,104,118,95,118,109,107,105,110,77,71,0,0,0,0,-12,-15,-95,-95,-95,-95,-95,-95,-95,-90,-102,-90,-90,-90,-102,-102,-102,-102,-102,-102,-102,-102,-102]} 1. c4 {[%emt 0:00:03]} e6 {[%emt 0:00:21]} 2. Nc3 {[%emt 0:00:21]} d5 {[%emt 0:00:11]} 3. d4 {[%emt 0:00:36]} a6 {[%emt 0:00:41]} 4. c5 {[%emt 0:07:12]} b6 {[%emt 0:04:43]} 5. cxb6 {[%emt 0:00:08]} cxb6 {[%emt 0:00:10]} 6. Bf4 {[%emt 0:00:19] D31: Queen's Gambit Declined: Semi-Slav without ...Nf6 (+ Marshall Gambit and Noteboom) and Exchange Variation lines without ...Nf6.} Bd6 {[%emt 0:09:45]} 7. e3 {[%emt 0:00:18]} Nf6 {[%emt 0:02:06]} 8. Bd3 {[%emt 0:01:54] The position is equal.} Bb7 {[%emt 0:02:30]} 9. Nf3 {[%emt 0:03:01]} Nc6 {[%emt 0:02:23] [#]} 10. Rc1 $146 {[%emt 0:05:30]} ({Predecessor:} 10. O-O Bxf4 11. exf4 O-O 12. Re1 Qd6 13. g3 g6 14. Rc1 Rac8 15. Bb1 Rc7 16. Na4 {0-1 Le,Q (2728)-Nguyen,N (2645) ChessKid Cup Div 2 W rapid 2023 (2.2)}) 10... Qb8 {[%emt 0:06:41]} 11. Bg5 {[%emt 0:04:43]} (11. Na4 $5 {[%cal Ra4b6]}) 11... Nd7 {[%emt 0:10:50]} 12. O-O {[%emt 0:14:48]} h6 {[%emt 0:00:57]} 13. Bh4 {[%emt 0:00:05]} O-O {[%emt 0:09:20]} 14. a3 {[%emt 0:04:12]} f5 {[%emt 0:06:59]} 15. Bg3 {[%emt 0:07:06]} Bxg3 {[%emt 0:09:27]} 16. hxg3 {[%emt 0:02:06]} Qd6 {[%emt 0:02:20]} 17. Na4 {[%emt 0:02:05]} Na5 {[%emt 0:01:31] [#]} 18. g4 {[%emt 0:16:43]} fxg4 $11 {[%emt 0:07:21] [#]} 19. Ne5 {[%emt 0:00:15][%mdl 64] Deflection} Nxe5 {[%emt 0:01:51]} 20. dxe5 {[%emt 0:00:04]} Qxe5 {[%emt 0:00:09]} 21. Nxb6 {[%emt 0:06:35]} Rad8 {[%emt 0:01:10] Strongly threatening ...g3.} 22. Qxg4 {[%emt 0:00:23]} Qd6 {[%emt 0:03:41] [#] Repels b4} (22... Nb3 $11) 23. Na4 $1 $36 {[%emt 0:01:49][%mdl 2048] White has strong initiative.} e5 {[%emt 0:03:50]} 24. Nc5 {[%emt 0:02:03] Black must now prevent Ne6.} Bc8 {[%emt 0:00:22][%cal Bb7c8,Bc8g4,Bg4f3][%mdl 32] Prevents Ne6} 25. Qa4 {[%emt 0:03:55] White is much more active.} e4 {[%emt 0:02:47]} 26. Qxa5 {[%emt 0:07:26][%cal Rd3a6]} exd3 {[%emt 0:00:06]} 27. Nxd3 {[%emt 0:00:39]} Bg4 {[%emt 0:07:12]} 28. Qd2 {[%emt 0:03:58] Prevents Be2.} d4 {[%emt 0:02:08] Threatens to win with ...dxe3.} 29. Ne1 {[%emt 0:01:34]} ({White should try} 29. Rfe1 $16) 29... dxe3 $11 {[%emt 0:00:54]} 30. Qxe3 {[%emt 0:00:01]} (30. Qxd6 {simplifies} exf2+ 31. Rxf2 Rxd6 32. Rc4) 30... Kh8 {[%emt 0:00:59] aiming for ...Rfe8.} 31. Nc2 {[%emt 0:01:32]} Bf3 {[%emt 0:01:03] ...Rde8 is the strong threat.} 32. Ne1 {[%emt 0:00:22]} (32. gxf3 {leads to mate.} Qg6+ 33. Kh2 Rd5) (32. Nd4 $1 $11 {remains equal.} Qxd4 33. Qxd4 Rxd4 34. gxf3) 32... Rde8 $17 {[%emt 0:00:37] Black is better.} 33. Qxe8 {[%emt 0:01:05][%mdl 64] Deflection} Rxe8 {[%emt 0:00:10][%cal Bf8e8,Be8e2,Be2a2][%mdl 32]} 34. Nxf3 {[%emt 0:00:06]} Re2 {[%emt 0:01:16]} 35. b4 {[%emt 0:00:33]} Qb6 {[%emt 0:00:22][%mdl 1024] Black has strong compensation.} 36. Rc5 {[%emt 0:01:57]} Ra2 {[%emt 0:00:26]} 37. Ra5 {[%emt 0:00:08]} Kh7 {[%emt 0:00:37]} 38. Ne5 {[%emt 0:00:40]} Qd6 {[%emt 0:00:34] Inhibits Nd7.} 39. Nf3 {[%emt 0:01:48]} Qd3 {[%emt 0:00:21]} 40. a4 {[%emt 0:00:40]} Qc4 {[%emt 0:00:29]} 41. b5 {[%emt 0:03:36]} axb5 {[%emt 0:06:35]} ({Stronger than} 41... Rxa4 42. Rxa4 Qxa4 43. bxa6 $17) 42. Rxb5 {[%emt 0:00:09] Weighted Error Value: White=0.13 (very precise) /Black=0.09 (flawless)} 1/2-1/2

[Event "26th OIBM 2023"]
[Site "Gmund am Tegernsee"]
[Date "2023.11.03"]
[Round "7.11"]
[White "Van Foreest, Lucas"]
[Black "Karsay, Pascal"]
[Result "1-0"]
[ECO "D02"]
[WhiteElo "2540"]
[BlackElo "2301"]
[Annotator "TA"]
[PlyCount "63"]
[EventDate "2023.10.04"]
[EventType "swiss"]
[EventCountry "GER"]
[SourceTitle "playchess.com"]
[Source "ChessBase"]
[SourceQuality "1"]
[TimeControl "40/5400+30:1800+30"]

{[%evp 11,63,0,13,0,8,6,31,-7,0,-3,4,0,18,0,7,0,3,0,26,45,47,37,37,8,30,33,42,45,122,120,122,101,87,80,143,143,151,152,121,118,112,89,92,99,92,102,102,93,104,84,157,156,737,751]} 1. d4 {[%emt 0:00:09]} Nf6 {[%emt 0:00:13]} 2. Bf4 {[%emt 0:00:14]} d5 {[%emt 0:00:57]} 3. e3 {[%emt 0:00:06]} e6 {[%emt 0:02:13]} 4. Nf3 {[%emt 0:00:37]} c5 {[%emt 0:00:40]} 5. Nbd2 {[%emt 0:00:24]} Nc6 {[%emt 0:00:20]} 6. c3 {[%emt 0:00:09]} Nh5 {[%emt 0:00:31] 6...Be7 is the recent fashion.} 7. Bg5 {[%emt 0:00:10] D02: 1 d4 d5 2 Nf3 sidelines, including 2...Nf6 3 g3 and 2...Nf6 3 Bf4.} f6 {[%emt 0:00:16]} 8. Bh4 {[%emt 0:00:07][%cal Of3e5]} g6 {[%emt 0:00:09]} 9. Be2 {[%emt 0:01:35][%cal Of3e5] White is slightly better.} cxd4 {[%emt 0:02:35]} 10. cxd4 {[%emt 0:10:28][%cal Of3e5]} Be7 {[%emt 0:02:20]} 11. O-O {[%emt 0:02:50]} O-O {[%emt 0:01:00]} 12. Rc1 {[%emt 0:00:23]} Ng7 {[%emt 0:04:29]} 13. Bg3 {[%emt 0:00:25]} Nf5 {[%emt 0:05:10]} 14. Nb3 {[%emt 0:00:04] [#]} h5 $146 {[%emt 0:06:27]} ({Predecessor:} 14... Nxg3 15. hxg3 Bd6 16. Bd3 Ne7 17. Re1 b6 18. e4 dxe4 19. Bxe4 Rb8 20. Nbd2 Kg7 {½-½ Harikrishna,P (2711)-Vachier Lagrave,M (2739) World-chT Rapid 2023 (5.1)}) 15. Bd3 {[%emt 0:13:48]} g5 {[%emt 0:07:47]} 16. Bxf5 {[%emt 0:00:26]} exf5 {[%emt 0:00:06]} 17. h3 {[%emt 0:00:22][%cal Bh2h3,Bh3h4][%mdl 32]} Qe8 {[%emt 0:04:04]} 18. h4 {[%emt 0:19:34]} f4 {[%emt 0:22:41]} 19. exf4 {[%emt 0:00:06]} gxf4 {[%emt 0:02:34]} (19... g4 $14) 20. Bxf4 $16 {[%emt 0:00:21]} Qg6 {[%emt 0:00:06]} 21. Re1 {[%emt 0:00:55][%cal Oc1c6,Bf1e1,Be1e3,Be3g3][%mdl 32] And now Rxc6! would win.} Rf7 {[%emt 0:00:30]} 22. Nh2 {[%emt 0:06:14]} Bf5 {[%emt 0:03:48]} (22... Rg7 $142 23. Qf3 Kh7) 23. Re3 {[%emt 0:01:03]} Kh8 {[%emt 0:01:50]} 24. Rg3 {[%emt 0:00:17]} Qh7 {[%emt 0:00:08]} 25. a3 {[%emt 0:01:27] Inhibits Nb4.} Nd8 {[%emt 0:01:56]} 26. Qd2 {[%emt 0:04:31] Black is weak on the dark squares} Bf8 {[%emt 0:03:31]} 27. Re1 $36 {[%emt 0:06:30][%mdl 2048] White is on the roll.} Ne6 {[%emt 0:02:32] [#] Against Nc5} 28. Nc5 $1 {[%emt 0:01:55][%cal Bb3c5,Bc5a4,Ba4c3][%mdl 32]} Nxf4 {[%emt 0:00:28]} 29. Qxf4 {[%emt 0:00:09]} b6 {[%emt 0:03:15]} 30. Na4 {[%emt 0:02:49] White is much more active.} Rd8 {[%emt 0:03:03]} (30... Be4 $142) 31. Nc3 {[%emt 0:00:29]} Bd6 $2 {[%emt 0:00:49] [#]} (31... Bh6 $16 32. Qf3 Bd2) 32. Qxd6 $1 {[%emt 0:00:07] Weighted Error Value: White=0.08 (flawless) /Black=0.16 (very precise)} 1-0

[Event "26th OIBM 2023"]
[Site "Gmund am Tegernsee"]
[Date "2023.11.03"]
[Round "7.12"]
[White "Forchert, Martin"]
[Black "Ghazarian, Kirk"]
[Result "1/2-1/2"]
[ECO "B67"]
[WhiteElo "2317"]
[BlackElo "2473"]
[Annotator "RC"]
[PlyCount "51"]
[EventDate "2023.10.04"]
[EventType "swiss"]
[EventCountry "GER"]
[SourceTitle "playchess.com"]
[Source "ChessBase"]
[SourceQuality "1"]
[TimeControl "40/5400+30:1800+30"]

1. e4 {[%emt 0:00:03]} c5 {[%emt 0:00:24]} 2. Nf3 {[%emt 0:00:05]} d6 {[%emt 0:00:33]} 3. d4 {[%emt 0:00:55]} cxd4 {[%emt 0:00:06]} 4. Nxd4 {[%emt 0:00:05]} Nf6 {[%emt 0:00:08]} 5. Nc3 {[%emt 0:00:05]} Nc6 {[%emt 0:00:36]} 6. Bg5 {[%emt 0:00:35]} e6 {[%emt 0:00:11]} 7. Qd2 {[%emt 0:00:45]} a6 {[%emt 0:00:13]} 8. O-O-O {[%emt 0:00:24]} Bd7 {[%emt 0:00:11]} 9. f3 {[%emt 0:02:02]} Nxd4 {[%emt 0:00:11]} 10. Qxd4 {[%emt 0:00:09]} h6 {[%emt 0:00:06]} 11. Be3 {[%emt 0:09:54]} Bc6 {[%emt 0:00:05]} 12. Bc4 {[%emt 0:08:16]} b5 {[%emt 0:05:49]} 13. Bb3 {[%emt 0:00:23]} Be7 {[%emt 0:00:35]} 14. g4 {[%emt 0:04:16]} Nd7 {[%emt 0:22:22]} 15. h4 {[%emt 0:20:47]} a5 {[%emt 0:13:47]} 16. g5 {[%emt 0:12:58]} hxg5 {[%emt 0:20:17]} 17. hxg5 {[%emt 0:00:07]} Rxh1 {[%emt 0:00:51]} 18. Rxh1 {[%emt 0:00:06]} Bxg5 {[%emt 0:01:35]} 19. Qxd6 {[%emt 0:04:06]} Bxe3+ {[%emt 0:06:16]} 20. Kb1 {[%emt 0:00:07]} Bh6 {[%emt 0:03:32]} 21. Qxc6 {[%emt 0:00:06]} Rc8 {[%emt 0:10:21]} 22. Qxb5 {[%emt 0:02:56]} Rb8 {[%emt 0:00:06]} 23. Qh5 {[%emt 0:04:21]} Kf8 {[%emt 0:04:52]} 24. Rd1 {[%emt 0:01:11]} Qc7 {[%emt 0:00:29]} 25. a4 {[%emt 0:05:30]} Nf6 {[%emt 0:00:48]} 26. Qh4 {[%emt 0:05:45]} 1/2-1/2

[Event "26th OIBM 2023"]
[Site "Gmund am Tegernsee"]
[Date "2023.11.03"]
[Round "7.13"]
[White "Garner, Isaac"]
[Black "Meins, Gerlef"]
[Result "1/2-1/2"]
[ECO "E14"]
[WhiteElo "2309"]
[BlackElo "2412"]
[Annotator "RC"]
[PlyCount "73"]
[EventDate "2023.10.04"]
[EventType "swiss"]
[EventCountry "GER"]
[SourceTitle "playchess.com"]
[Source "ChessBase"]
[SourceQuality "1"]
[TimeControl "40/5400+30:1800+30"]

1. d4 {[%emt 0:00:03]} Nf6 {[%emt 0:00:10]} 2. Nf3 {[%emt 0:00:07]} e6 {[%emt 0:00:34]} 3. c4 {[%emt 0:00:04]} Bb4+ {[%emt 0:01:24]} 4. Nbd2 {[%emt 0:00:08]} b6 {[%emt 0:01:00]} 5. a3 {[%emt 0:01:11]} Bxd2+ {[%emt 0:00:22]} 6. Qxd2 {[%emt 0:00:06]} Bb7 {[%emt 0:00:39]} 7. e3 {[%emt 0:00:11]} d6 {[%emt 0:04:40]} 8. Be2 {[%emt 0:00:31]} Nbd7 {[%emt 0:01:38]} 9. O-O {[%emt 0:04:24]} O-O {[%emt 0:04:47]} 10. b4 {[%emt 0:00:06]} c5 {[%emt 0:05:27]} 11. Bb2 {[%emt 0:07:32]} Qe7 {[%emt 0:10:19]} 12. Rfd1 {[%emt 0:18:17]} Rfd8 {[%emt 0:02:28]} 13. dxc5 {[%emt 0:16:57]} dxc5 {[%emt 0:00:09]} 14. Qd6 {[%emt 0:00:03]} Qxd6 {[%emt 0:34:06]} 15. Rxd6 {[%emt 0:00:07]} Ne4 {[%emt 0:00:13]} 16. Rd3 {[%emt 0:00:42]} Nf8 {[%emt 0:02:13]} 17. Ne5 {[%emt 0:22:34]} f6 {[%emt 0:04:16]} 18. Rad1 {[%emt 0:00:05]} Rxd3 {[%emt 0:14:47]} 19. Nxd3 {[%emt 0:00:05]} cxb4 {[%emt 0:00:22]} 20. axb4 {[%emt 0:00:52]} e5 {[%emt 0:00:54]} 21. f3 {[%emt 0:05:40]} Ng5 {[%emt 0:01:24]} 22. f4 {[%emt 0:01:36]} exf4 {[%emt 0:00:09]} 23. exf4 {[%emt 0:02:15]} Ne4 {[%emt 0:01:00]} 24. Nf2 {[%emt 0:00:32]} Re8 {[%emt 0:06:50]} 25. Ra1 {[%emt 0:07:48]} Nd6 {[%emt 0:00:26]} 26. Bd3 {[%emt 0:00:47]} Ne6 {[%emt 0:01:12]} 27. g3 {[%emt 0:03:36]} a6 {[%emt 0:00:12]} 28. Rd1 {[%emt 0:01:48]} Bf3 {[%emt 0:00:50]} 29. Re1 {[%emt 0:01:35]} b5 {[%emt 0:01:25]} 30. c5 {[%emt 0:01:25]} Nc4 {[%emt 0:00:03]} 31. Bc3 {[%emt 0:00:07]} Nc7 {[%emt 0:00:31]} 32. Rxe8+ {[%emt 0:00:50]} Nxe8 {[%emt 0:00:02]} 33. Ne4 {[%emt 0:00:34]} Nc7 {[%emt 0:01:05]} 34. Kf2 {[%emt 0:03:06]} Bh1 {[%emt 0:00:11]} 35. Kg1 {[%emt 0:00:29]} Bf3 {[%emt 0:00:02]} 36. Kf2 {[%emt 0:00:04]} Bh1 {[%emt 0:00:08]} 37. Kg1 {[%emt 0:01:04]} 1/2-1/2